fUSD/lending_fUSD_20250609
["ID","MTS","AMOUNT","RATE_DAILY","PERIOD"]
[365166198,1749507059709,-490.0,0.00019671,2]
[365166199,1749507059719,-490.0,0.00019671,2]
[365166200,1749507059729,-490.0,0.00019671,2]
[365166201,1749507059738,-765.62,0.00019671,2]
[365166202,1749507059748,-513.81,0.00019671,2]
[365166203,1749507059759,-490.0,0.00019671,2]
[365166204,1749507059769,-1285.3,0.00019671,2]
[365166205,1749507059779,-628.27,0.00019671,2]
[365166206,1749507059791,-490.0,0.00019671,2]
[365166207,1749507059801,-2187.9,0.00019671,2]
[365166208,1749507059810,-2400.14,0.00019671,2]
[365166209,1749507059820,-1738.89,0.00019671,2]
[365166210,1749507059830,-490.0,0.00019671,2]
[365166211,1749507059839,-490.0,0.00019671,2]
[365166212,1749507059849,-1053.65,0.00019671,2]
[365166213,1749507059859,-490.0,0.00019671,2]
[365166214,1749507059868,-4195.3,0.00019671,2]
[365166215,1749507059878,-490.0,0.00019671,2]
[365166216,1749507059887,-558.88,0.00019671,2]
[365166217,1749507059898,-490.0,0.00019671,2]
[365166218,1749507059908,-1025.56,0.00019671,2]
[365166219,1749507059917,-1398.14,0.00019671,2]
[365166220,1749507059926,-564.17,0.00019671,2]
[365166221,1749507059937,-1477.81,0.00019671,2]
[365166222,1749507059948,-2907.87,0.00019671,2]
[365166223,1749507059958,-490.0,0.00019671,2]
[365166224,1749507059968,-490.0,0.00019671,2]
[365166225,1749507059977,-490.0,0.00019671,2]
[365166226,1749507059987,-1104.2,0.00019671,2]
[365166227,1749507059996,-606.59,0.00019671,2]
[365166228,1749507060006,-200.9377519,0.00019671,2]
[365166229,1749507061025,-1038.99124721,0.00018768,2]
[365166230,1749507061036,-1052.44513077,0.00018768,2]
[365166231,1749507061046,-359.2239268,0.00019178,2]
[365166232,1749507061056,-289.0622481,0.00019671,2]
[365166233,1749507061066,-1506.92,0.00019671,2]
[365166234,1749507061076,-757.86,0.00019671,2]
[365166235,1749507061086,-288.79744719,0.00019671,2]
[365166236,1749507132029,204.0,0.00017531,2]
[365166238,1749507162977,446.97,0.00013699,2]
[365166239,1749507648300,1234.7,0.00016033,2]
[365166240,1749507654232,1000.0,0.00017932,2]
[365166241,1749507656049,1580.99,0.00017932,2]
[365166242,1749507674939,200.87,0.00017927,2]
[365166243,1749507731686,201.0,0.00017766,2]
[365166244,1749507742140,200.0,0.00017825,2]
[365166245,1749507767867,410.67,0.00017803,2]
[365166246,1749507772491,520.58,0.00017803,2]
[365166247,1749507814679,1043.84,0.00017788,2]
[365166248,1749507829967,695.42,0.00017788,2]
[365166249,1749507875570,6417.21,0.00017822,2]
[365166251,1749507928308,200.0,0.00017839,2]
[365166252,1749508002608,500.0,0.00017828,2]
[365166253,1749508003069,150.0,0.00018,2]
[365166254,1749508037142,762.63,0.00017801,2]
[365166255,1749508040779,169.99,0.00017801,2]
[365166256,1749508092153,201.0,0.00017878,2]
[365166259,1749508129215,167.28,0.00017752,2]
[365166261,1749508183286,15992.19,0.00017718,2]
[365166268,1749508202692,2583.01,0.00017789,2]
[365166292,1749508232340,-1183.1,0.00018071,2]
[365166293,1749508232350,-500.0,0.00018077,3]
[365166294,1749508232360,-2176.61034996,0.00018255,2]
[365166295,1749508232371,-926.56965004,0.00018255,2]
[365166296,1749508232380,-151.0,0.00018269,2]
[365166297,1749508232392,-300.0,0.00018277,2]
[365166298,1749508232401,-1200.0,0.00018277,2]
[365166299,1749508232411,-66.83034997,0.00018279,2]
[365166300,1749508232668,-233.16965003,0.00018279,2]
[365166301,1749508232677,-203.28034997,0.00018279,2]
[365166303,1749508232712,-96.71965003,0.00018279,2]
[365166305,1749508232722,-2606.19045006,0.0001828,2]
[365166463,1749508238428,-4401.15,0.0001828,2]
[365166464,1749508238512,-1378.22999993,0.0001828,2]
[365166465,1749508238536,-2895.42994945,0.0001828,2]
[365166466,1749508238559,-11427.02,0.0001828,2]
[365166467,1749508238581,-1860.72960056,0.0001828,2]
[365166468,1749508238591,-1234.7,0.00018297,2]
[365166469,1749508238600,-550.0,0.00018318,2]
[365166470,1749508238608,-151.0,0.00018319,2]
[365166471,1749508238618,-1151.21076435,0.00018319,2]
[365166472,1749508238724,-806.64523565,0.00018319,2]
[365166473,1749508238734,-1000.0,0.00018319,2]
[365166474,1749508238743,-500.0,0.00018319,2]
[365166475,1749508238753,-500.0,0.00018319,2]
[365166476,1749508238762,-500.0,0.00018319,2]
[365166477,1749508238772,-151.0,0.00018319,2]
[365166478,1749508238781,-520.63085361,0.00018319,2]
[365166479,1749508238791,-500.0,0.00018319,2]
[365166480,1749508238800,-500.0,0.00018319,2]
[365166481,1749508238811,-500.0,0.00018319,2]
[365166482,1749508238823,-500.0,0.00018319,2]
[365166483,1749508238833,-200.09507562,0.00018319,2]
[365166484,1749508238843,-188.24571073,0.00018319,2]
[365166485,1749508238852,-500.0,0.00018319,2]
[365166487,1749508238862,-500.0,0.00018319,2]
[365166489,1749508238871,-151.52017565,0.00018319,2]
[365166491,1749508238881,-500.0,0.00018319,2]
[365166493,1749508238893,-500.0,0.00018319,2]
[365166494,1749508238902,-500.0,0.00018319,2]
[365166495,1749508238912,-500.0,0.00018319,2]
[365166496,1749508238921,-500.0,0.00018319,2]
[365166497,1749508238931,-516.44800324,0.00018319,2]
[365166498,1749508238940,-207.4,0.00018319,2]
[365166500,1749508238949,-600.0,0.0001833,4]
[365166502,1749508238959,-6626.63904612,0.0001833,2]
[365166545,1749508239353,-3856.82326345,0.0001833,2]
[365166547,1749508239365,-2139.49399144,0.0001833,2]
[365166549,1749508239375,-171.1,0.00018351,2]
[365166551,1749508239384,-2030.296672,0.00018374,2]
[365166553,1749508239395,-300.0,0.00018384,2]
[365166556,1749508239406,-166.35,0.00018385,2]
[365166558,1749508239416,-2105.41764886,0.00018429,2]
[365166560,1749508239426,-638.2731482,0.00018429,2]
[365166562,1749508239438,-983.40962041,0.00018429,2]
[365166564,1749508239448,-504.30965181,0.0001846,2]
[365166566,1749508239458,-300.0,0.00018469,2]
[365166568,1749508239467,-150.0,0.00018473,7]
[365166570,1749508239477,-2183.31810187,0.00018484,2]
[365166572,1749508239487,-455.54112124,0.00018538,2]
[365166574,1749508239498,-896.59990467,0.00018538,2]
[365166576,1749508239510,-2501.67897409,0.00018538,2]
[365166578,1749508239520,-2158.47102591,0.00018539,2]
[365166580,1749508239532,-105.62984573,0.00018539,2]
[365166582,1749508239542,-2347.87260389,0.00018594,2]
[365166584,1749508239552,-196.49755038,0.00018649,2]
[365166653,1749508240413,-548.66066903,0.00018649,2]
[365166654,1749508240425,-1324.1,0.00018649,2]
[365166655,1749508240673,-365.48567083,0.00018649,2]
[365166656,1749508240683,-783.01849384,0.00018704,2]
[365166657,1749508240693,-201.35233406,0.00018857,2]
[365166658,1749508240703,-194.66442352,0.00018867,2]
[365166659,1749508240712,-227.7629,0.000189,2]
[365166660,1749508240722,-1000.0,0.000189,2]
[365166661,1749508240731,-153.90645894,0.000189,2]
[365166662,1749508240741,-204.93404727,0.000189,2]
[365166663,1749508240750,-489.60294699,0.000189,2]
[365166664,1749508240760,-170.85119798,0.000189,2]
[365166665,1749508240769,-3756.90393407,0.000189,2]
[365166666,1749508240779,-489.60294688,0.00018927,2]
[365166667,1749508240788,-489.60294688,0.00018953,2]
[365166668,1749508240798,-1129.19674709,0.00018955,2]
[365166669,1749508240808,-1075.02474561,0.00018955,2]
[365166670,1749508240820,-1105.25835075,0.00018955,2]
[365166671,1749508240829,-1191.76055544,0.00018955,2]
[365166672,1749508240839,-204.93404727,0.00018959,2]
[365166673,1749508240848,-500.0,0.00018973,2]
[365166674,1749508240858,-500.0,0.00018973,2]
[365166675,1749508240867,-500.0,0.00018973,2]
[365166676,1749508240877,-500.0,0.00018973,2]
[365166677,1749508240886,-489.60294688,0.0001898,2]
[365166678,1749508240896,-500.0,0.00018983,2]
[365166679,1749508240905,-500.0,0.00018983,2]
[365166680,1749508240914,-500.0,0.00018983,2]
[365166681,1749508240924,-500.0,0.00018983,2]
[365166682,1749508240934,-628.08639931,0.00018983,2]
[365166683,1749508240943,-500.0,0.00018983,2]
[365166684,1749508240953,-500.0,0.00018983,2]
[365166685,1749508240962,-500.0,0.00018983,2]
[365166686,1749508240971,-648.18556667,0.00018983,2]
[365166687,1749508240981,-421.39731035,0.00018983,2]
[365166688,1749508240991,-1315.74184936,0.00018984,2]
[365166689,1749508241003,-537.5807169,0.00018984,2]
[365166690,1749508241014,-1195.44031676,0.00018984,2]
[365166691,1749508241026,-2855.48009919,0.00018984,2]
[365166692,1749508241042,-4241.23566297,0.00018984,2]
[365166693,1749508241054,-638.46626463,0.00018984,2]
[365166694,1749508241064,-246.08125096,0.00018999,2]
[365166695,1749508241073,-15.62968155,0.00018999,2]
[365166697,1749508241085,-484.37031845,0.00018999,2]
[365166698,1749508241094,-310.2031327,0.00018999,2]
[365166699,1749508241103,-500.0,0.00018999,2]
[365166700,1749508241113,-500.0,0.00018999,2]
[365166701,1749508241122,-1111.79118829,0.00019,2]
[365166702,1749508241133,-4432.26839026,0.00019,2]
[365166703,1749508241146,-11521.94385747,0.00019,2]
[365166704,1749508241157,-37209.35429289,0.00019,2]
[365166705,1749508241168,-678.42001266,0.00019,2]
[365166706,1749508241178,-2093.62099511,0.00019,2]
[365166707,1749508241188,-12148.77292668,0.00019,2]
[365166708,1749508241297,-48818.11786178,0.00019,2]
[365166769,1749508243708,-341.82634215,0.00018999,2]
[365166790,1749508246509,-158.17365785,0.00018999,2]
[365166791,1749508246519,-614.22506181,0.00018999,2]
[365166792,1749508246528,-137.21986027,0.00019,2]
[365166822,1749508269608,150.0,0.00017797,2]
[365166823,1749508301845,201.0,0.00017878,2]
[365166824,1749508410620,424.62,0.00013699,2]
[365166827,1749508650676,1190.8,0.00016118,2]
[365166828,1749508662982,244.0,0.0001748,2]
[365166829,1749508663325,244.0,0.0001657,2]
[365166830,1749508663640,244.0,0.0001566,2]
[365166831,1749508663905,244.0,0.0001476,2]
[365166832,1749508738335,553.43,0.00017997,2]
[365166833,1749508811606,201.0,0.00017016,2]
[365166834,1749508918950,1930.31,0.00017925,2]
[365166835,1749508962629,200.0,0.00017896,2]
[365166836,1749509048379,973.8,0.00017894,2]
[365166838,1749509069617,12625.80920372,0.00017999,2]
[365166839,1749509098000,1333.0,0.00023233,120]
[365166841,1749509171995,201.0,0.00017178,2]
[365166842,1749509380713,403.38,0.00013699,2]
[365166844,1749509385861,150.0,0.00017718,7]
[365166845,1749509420615,250.0,0.00017711,2]
[365166846,1749509426843,23900.0,0.00017723,2]
[365166850,1749509431563,-819.33484271,0.0001804,2]
[365166851,1749509431602,-180.66515729,0.0001804,2]
[365166852,1749509431614,-216.58484271,0.00018052,2]
[365166890,1749509437797,-83.41515729,0.00018052,2]
[365166892,1749509437808,-300.0,0.00018052,2]
[365166894,1749509437820,-1200.0,0.00018052,2]
[365166896,1749509437830,-10138.87,0.00018053,2]
[365166898,1749509437841,-198.26,0.00018137,2]
[365166901,1749509437853,-1105.50898555,0.00018319,2]
[365166903,1749509437869,-125.83469483,0.00018319,2]
[365166918,1749509439569,-81.56530517,0.00018319,2]
[365166919,1749509439577,-201.0,0.00018367,3]
[365166920,1749509439585,-221.84180069,0.00018376,2]
[365166921,1749509440128,-1609.93925948,0.00018381,2]
[365166922,1749509440156,-150.0,0.00018381,2]
[365166923,1749509440179,-1190.8,0.00018382,2]
[365166924,1749509440190,-244.0,0.0001839,2]
[365166925,1749509440200,-165.94,0.00018489,2]
[365166926,1749509440209,-16354.59238021,0.000185,2]
[365166927,1749509440218,-8565.75,0.00018533,2]
[365166928,1749509440227,-1593.52,0.00018596,2]
[365166929,1749509440236,-326.2,0.000186,2]
[365166930,1749509440246,-170.66,0.000186,2]
[365166931,1749509440255,-391.68235758,0.000187,2]
[365166932,1749509440264,-3417.97112089,0.000187,2]
[365166933,1749509440274,-170.85119797,0.000187,2]
[365166934,1749509440283,-7424.3577277,0.000187,2]
[365166935,1749509440702,-42320.82229711,0.000187,2]
[365166936,1749509440712,-391.6823575,0.00018711,2]
[365166937,1749509440722,-391.6823575,0.00018721,2]
[365166938,1749509440731,-391.6823575,0.00018732,2]
[365166939,1749509440740,-391.6823575,0.00018742,2]
[365166940,1749509440750,-391.6823575,0.00018753,2]
[365166941,1749509440760,-250.96944193,0.00018762,2]
[365166942,1749509440769,-244.52815863,0.00018762,2]
[365166943,1749509440780,-157.93303448,0.00018762,2]
[365166944,1749509440790,-500.0,0.00018762,2]
[365166945,1749509440799,-391.58044174,0.00018762,2]
[365166946,1749509440810,-391.6823575,0.00018763,2]
[365166947,1749509440819,-184.00969807,0.00018767,2]
[365166948,1749509440829,-500.0,0.00018773,2]
[365166949,1749509440838,-500.0,0.00018773,2]
[365166950,1749509440848,-500.0,0.00018773,2]
[365166951,1749509440857,-500.0,0.00018773,2]
[365166952,1749509440866,-391.6823575,0.00018774,2]
[365166953,1749509440876,-391.6823575,0.00018784,2]
[365166954,1749509440886,-151.0,0.00018789,2]
[365166955,1749509440896,-1000.0,0.00018789,2]
[365166956,1749509440905,-500.0,0.00018789,2]
[365166957,1749509440914,-500.0,0.00018789,2]
[365166958,1749509440924,-500.0,0.00018789,2]
[365166959,1749509440933,-500.0,0.00018789,2]
[365166960,1749509440943,-500.0,0.00018789,2]
[365166961,1749509440952,-500.0,0.00018789,2]
[365166962,1749509440962,-500.0,0.00018789,2]
[365166963,1749509440971,-602.15084188,0.00018789,2]
[365166964,1749509440984,-300.0,0.00018789,2]
[365166965,1749509440995,-300.0,0.00018789,2]
[365166966,1749509441005,-300.0,0.00018789,2]
[365166967,1749509441014,-300.0,0.00018789,2]
[365166968,1749509441023,-300.0,0.00018789,2]
[365166969,1749509441033,-300.0,0.00018789,2]
[365166970,1749509441042,-300.0,0.00018789,2]
[365166971,1749509441051,-300.0,0.00018789,2]
[365166972,1749509441062,-159.61831628,0.00018789,2]
[365166973,1749509441071,-153.11,0.0001879,2]
[365166974,1749509441081,-153.11,0.0001879,2]
[365166975,1749509441090,-391.6823575,0.00018795,2]
[365166976,1749509441099,-1000.0,0.00018799,2]
[365166977,1749509441108,-232.24680359,0.00018799,2]
[365166978,1749509441117,-195.70774773,0.00018799,2]
[365166979,1749509441126,-214.73487713,0.00018799,2]
[365166980,1749509441135,-248.79781847,0.00018799,2]
[365166981,1749509441147,-500.0,0.00018799,2]
[365166982,1749509441157,-276.40442872,0.00018799,2]
[365166983,1749509441166,-256.11687561,0.00018799,2]
[365166984,1749509441176,-500.0,0.00018799,2]
[365166985,1749509441186,-547.09973615,0.00018799,2]
[365166986,1749509441195,-500.0,0.00018799,2]
[365166987,1749509441204,-300.0,0.00018799,2]
[365166988,1749509441213,-300.0,0.00018799,2]
[365166989,1749509441223,-300.0,0.00018799,2]
[365166990,1749509441233,-833.29909032,0.000188,3]
[365166991,1749509441242,-20413.33598125,0.000188,3]
[365166992,1749509441251,-26078.28319341,0.000188,3]
[365166993,1749509441263,-19706.43899996,0.000188,3]
[365166994,1749509441286,-2642.14771376,0.000188,3]
[365166995,1749509441297,-1214.98276237,0.000188,3]
[365166996,1749509441310,-1027.0,0.000188,3]
[365166997,1749509441321,-5180.56506876,0.000188,3]
[365166998,1749509441332,-31455.57136221,0.000188,3]
[365166999,1749509441343,-1781.137005,0.000188,3]
[365167000,1749509441354,-1363.68834929,0.000188,3]
[365167001,1749509441365,-6106.27801381,0.000188,3]
[365167002,1749509441376,-7249.99216898,0.000188,3]
[365167009,1749509442579,-166490.7522349,0.000188,3]
[365167020,1749509445637,-163.3,0.000186,2]
[365167021,1749509445646,-75727.75412887,0.000188,3]
[365167022,1749509445835,-410.80424206,0.000188,3]
[365167033,1749509453692,1415.0,0.00024658,120]
[365167034,1749509563209,1813.7,0.00024658,120]
[365167035,1749509658073,1071.72,0.00015941,2]
[365167036,1749509738501,480.76,0.0001785,2]
[365167037,1749509765350,167.07,0.00017851,2]
[365167038,1749509886460,1333.0,0.00023233,120]
[365167039,1749509891662,201.0,0.00017557,2]
[365167041,1749509902865,1000.0,0.0001789,2]
[365167043,1749510041320,205.0,0.00017557,2]
[365167047,1749510252214,201.0,0.00017805,2]
[365167049,1749510350995,946.48,0.00017782,2]
[365167050,1749510396072,250.0,0.00017782,2]
[365167051,1749510481153,150.0,0.00017769,7]
[365167052,1749510582370,10000.0,0.00024658,120]
[365167053,1749510591363,10000.0,0.00024658,120]
[365167054,1749510598684,10000.0,0.00024658,120]
[365167055,1749510606412,10000.0,0.00024658,120]
[365167056,1749510615005,10000.0,0.00024658,120]
[365167057,1749510624435,10000.0,0.00024658,120]
[365167064,1749510631749,-201.0,0.00018084,2]
[365167065,1749510631760,-1071.72,0.00018205,2]
[365167066,1749510631770,-3108.04621996,0.00018389,2]
[365167067,1749510631780,-66.92641679,0.00018489,2]
[365167068,1749510631792,-140.47358321,0.00018489,2]
[365167069,1749510631802,-300.0,0.00018498,2]
[365167070,1749510631812,-391.3128281,0.00018498,2]
[365167071,1749510631826,-609.88347487,0.00018498,2]
[365167072,1749510631939,-198.80369703,0.00018498,2]
[365167073,1749510631949,-3041.59630317,0.00018499,2]
[365167075,1749510632292,-4045.89369683,0.00018499,2]
[365167076,1749510632315,-199.50630317,0.000185,2]
[365167077,1749510632328,-720.63172157,0.000185,2]
[365167270,1749510634704,10000.0,0.00024658,120]
[365167290,1749510637844,-295.03502093,0.000185,2]
[365167291,1749510637856,-2328.56695433,0.000185,2]
[365167292,1749510637866,-300.0,0.000185,6]
[365167293,1749510637875,-600.0,0.000186,6]
[365167294,1749510637885,-1733.38798976,0.0001862,2]
[365167295,1749510637896,-3402.31409791,0.0001862,2]
[365167296,1749510637911,-47.69351773,0.0001862,2]
[365167297,1749510637922,-151.28794341,0.00018658,2]
[365167298,1749510637931,-366.04933517,0.000187,2]
[365167299,1749510637943,-633.95066483,0.000187,2]
[365167300,1749510637954,-396.04933517,0.000187,2]
[365167303,1749510640079,-2020.20336483,0.000187,2]
[365167304,1749510640090,-341.4689,0.000187,2]
[365167305,1749510640099,-161.62472342,0.000187,2]
[365167306,1749510640110,-236.62520468,0.000187,2]
[365167307,1749510640119,-64.83477971,0.000187,2]
[365167308,1749510640132,-121.45691517,0.000187,2]
[365167309,1749510640141,-3076.17400881,0.000187,2]
[365167310,1749510640151,-900.0,0.000187,6]
[365167311,1749510640161,-195.84117875,0.000187,2]
[365167312,1749510640171,-150.0,0.00018704,2]
[365167313,1749510640181,-150.0,0.00018713,2]
[365167314,1749510640191,-150.0,0.00018717,2]
[365167315,1749510640201,-150.0,0.00018718,2]
[365167316,1749510640210,-195.84117875,0.0001872,2]
[365167317,1749510640220,-150.0,0.0001872,2]
[365167318,1749510640230,-150.0,0.00018726,2]
[365167319,1749510640240,-150.0,0.00018733,2]
[365167320,1749510640250,-195.84117875,0.0001874,2]
[365167321,1749510640259,-150.0,0.00018744,2]
[365167322,1749510640269,-195.84117875,0.0001876,2]
[365167323,1749510640279,-150.0,0.00018763,2]
[365167324,1749510640288,-1000.0,0.00018765,2]
[365167325,1749510640298,-150.0,0.00018765,2]
[365167326,1749510640308,-150.0,0.00018765,2]
[365167327,1749510640318,-151.28794341,0.00018767,2]
[365167329,1749510640328,-150.0,0.00018768,2]
[365167330,1749510640338,-150.0,0.00018768,2]
[365167331,1749510640347,-150.0,0.00018771,2]
[365167332,1749510640357,-214.0,0.00018772,2]
[365167333,1749510640367,-150.0,0.00018772,2]
[365167334,1749510640378,-150.0,0.00018774,2]
[365167335,1749510640388,-3486.88871188,0.00018779,2]
[365167336,1749510640399,-195.84117875,0.0001878,2]
[365167337,1749510640409,-150.0,0.00018783,2]
[365167338,1749510640419,-150.0,0.00018786,2]
[365167339,1749510640428,-150.0,0.00018787,2]
[365167340,1749510640438,-151.0,0.00018789,2]
[365167341,1749510640448,-1000.0,0.00018789,2]
[365167342,1749510640458,-150.0,0.00018789,2]
[365167343,1749510640467,-153.11,0.00018789,2]
[365167344,1749510640477,-1091.21,0.00018789,2]
[365167345,1749510640488,-1091.21,0.00018789,2]
[365167346,1749510640497,-152.39521258,0.00018789,2]
[365167347,1749510640508,-150.0,0.00018792,2]
[365167348,1749510640518,-150.0,0.00018797,2]
[365167349,1749510640528,-1000.0,0.00018799,2]
[365167350,1749510640538,-300.0,0.00018799,2]
[365167351,1749510640548,-300.0,0.00018799,2]
[365167352,1749510640559,-2706.68603806,0.00018799,2]
[365167353,1749510640569,-150.0,0.00018799,3]
[365167354,1749510640579,-727.37527634,0.00018799,2]
[365167355,1749510640605,-188.43272366,0.00018799,2]
[365167356,1749510640616,-151.0,0.00018799,2]
[365167357,1749510640626,-125.76876812,0.00018799,2]
[365167361,1749510642763,-201.0,0.00018084,2]
[365167362,1749510642772,-53.5130448,0.00018799,2]
[365167363,1749510642782,-174.15847293,0.00018799,2]
[365167364,1749510642791,-500.0,0.00018799,2]
[365167365,1749510642801,-193.4831001,0.00018799,2]
[365167366,1749510642811,-150.31441399,0.00018799,2]
[365167367,1749510642821,-162.57276251,0.00018799,2]
[365167368,1749510642831,-432.96981531,0.00018799,2]
[365167369,1749510642840,-500.0,0.00018799,2]
[365167370,1749510642850,-666.0,0.00018799,2]
[365167371,1749510642860,-300.0,0.00018799,2]
[365167372,1749510642870,-300.0,0.00018799,2]
[365167373,1749510642880,-300.0,0.00018799,2]
[365167374,1749510642889,-195.84117875,0.00018799,2]
[365167375,1749510642899,-833.29909032,0.000188,3]
[365167376,1749510642909,-10206.66799062,0.000188,3]
[365167377,1749510642922,-5816.36039281,0.000188,3]
[365167431,1749510645760,-2142.40299516,0.000188,3]
[365167432,1749510645772,-2664.20000002,0.000188,3]
[365167433,1749510645904,-377.91,0.000188,3]
[365167434,1749510645917,-400.575,0.000188,3]
[365167435,1749510646081,-69203.09132994,0.000188,3]
[365167436,1749510646094,-18439.0010464,0.000188,3]
[365167437,1749510646106,-80846.48754103,0.000188,3]
[365167440,1749510679068,989.7,0.00016022,2]
[365167441,1749510680711,1222.94,0.00016438,2]
[365167442,1749510680958,1222.94,0.00016602,2]
[365167443,1749510681212,1222.94,0.00016767,2]
[365167444,1749510681462,1222.94,0.00016931,2]
[365167445,1749510681592,420.61979464,0.00016438,2]
[365167446,1749510681713,1222.94,0.00017095,2]
[365167447,1749510681965,1222.94,0.0001726,2]
[365167448,1749510682234,1222.94,0.00017424,2]
[365167449,1749510682489,1222.94,0.00017589,2]
[365167450,1749510682630,490.0,0.00016438,2]
[365167451,1749510683313,1222.94,0.00017753,2]
[365167452,1749510683369,490.0,0.00016602,2]
[365167453,1749510683510,1222.94,0.00017917,2]
[365167454,1749510683545,490.0,0.00016767,2]
[365167455,1749510683684,490.0,0.00016931,2]
[365167456,1749510683756,490.0,0.00017095,2]
[365167457,1749510683843,1502.247,0.00024658,120]
[365167458,1749510683876,490.0,0.00016438,2]
[365167459,1749510683923,345.7778572,0.0001726,2]
[365167460,1749510684154,1333.0,0.00023929,120]
[365167461,1749510684893,490.0,0.00016438,2]
[365167462,1749510685139,799.28,0.00016438,2]
[365167463,1749510685172,490.0,0.00016602,2]
[365167464,1749510685214,490.0,0.00016438,2]
[365167465,1749510685395,490.0,0.00016767,2]
[365167466,1749510685498,799.28,0.00016602,2]
[365167467,1749510685531,490.0,0.00016602,2]
[365167468,1749510685573,709.5,0.00016438,2]
[365167470,1749510685750,490.0,0.00016767,2]
[365167471,1749510685787,490.0,0.00016931,2]
[365167472,1749510685820,490.0,0.00016438,2]
[365167473,1749510685852,709.5,0.00016602,2]
[365167474,1749510685938,490.0,0.00016438,2]
[365167475,1749510685981,799.28,0.00016767,2]
[365167476,1749510686017,490.0,0.00017095,2]
[365167477,1749510686534,490.0,0.00016931,2]
[365167478,1749510686568,429.37161607,0.00016602,2]
[365167479,1749510686603,709.5,0.00016767,2]
[365167480,1749510686638,490.0,0.00016602,2]
[365167481,1749510686676,799.28,0.00016931,2]
[365167482,1749510686707,490.0,0.0001726,2]
[365167483,1749510686738,490.0,0.00017095,2]
[365167484,1749510686777,709.5,0.00016931,2]
[365167485,1749510686817,490.0,0.00016767,2]
[365167486,1749510686856,490.0,0.00017424,2]
[365167487,1749510686886,799.28,0.00017095,2]
[365167488,1749510686917,490.0,0.0001726,2]
[365167489,1749510686958,468.14889036,0.00016931,2]
[365167490,1749510686994,490.0,0.00017589,2]
[365167491,1749510687027,799.28,0.0001726,2]
[365167492,1749510687061,709.5,0.00017095,2]
[365167493,1749510687094,490.0,0.00017424,2]
[365167494,1749510687135,490.0,0.00017753,2]
[365167495,1749510687167,709.5,0.0001726,2]
[365167496,1749510687199,490.0,0.00017589,2]
[365167497,1749510687231,799.28,0.00017424,2]
[365167498,1749510687275,490.0,0.00017917,2]
[365167499,1749510687315,799.28,0.00017589,2]
[365167500,1749510687432,490.0,0.00017753,2]
[365167501,1749510687502,709.5,0.00017424,2]
[365167502,1749510687572,799.28,0.00017753,2]
[365167503,1749510687717,709.5,0.00017589,2]
[365167504,1749510687824,799.28,0.00017917,2]
[365167505,1749510687948,490.0,0.00016438,2]
[365167506,1749510687980,709.5,0.00017753,2]
[365167507,1749510688059,490.0,0.00017917,2]
[365167508,1749510688199,490.0,0.00016602,2]
[365167509,1749510688230,709.5,0.00017917,2]
[365167510,1749510688446,490.0,0.00016767,2]
[365167511,1749510688729,490.0,0.00016438,2]
[365167512,1749510688970,490.0,0.00016602,2]
[365167513,1749510689056,490.0,0.00016931,2]
[365167514,1749510689093,474.85,0.00016438,2]